bitfinex-derivatives/quotes_SOLF0:USTF0_20251201
["timestamp","ask_amount","ask_price","bid_price","bid_amount"]
[1764594976994,3.12,127.27,127.2,7.25437273]
[1764594977186,3.12,127.27,127.21,3.19]
[1764594977386,10.1936,127.27,127.21,3.19]
[1764594977597,3.12,127.26,127.21,3.19]
[1764594978095,3.17336639,127.25,127.22,3.24155373]
[1764594978495,0.05336639,127.25,127.22,3.24155373]
[1764594979089,3.17336639,127.25,127.22,3.24155373]
[1764594979791,3.17336639,127.25,127.22,0.05155373]
[1764594979992,0.05336639,127.25,127.22,3.24155373]
[1764594980494,3.37336639,127.25,127.22,3.24155373]
[1764594981583,3.37336639,127.25,127.22,0.05155373]
[1764594981788,3.37336639,127.25,127.22,3.15155373]
[1764594981987,3.37336639,127.25,127.22,0.05155373]
[1764594982287,3.37336639,127.25,127.22,3.15155373]
[1764594982489,3.37336639,127.25,127.22,0.05155373]
[1764594982685,3.37336639,127.25,127.22,3.15155373]
[1764594983294,0.05336639,127.25,127.22,3.15155373]
[1764594983792,0.05336639,127.25,127.22,7.21592646]
[1764594984000,3.32,127.33,127.25,3.1]
[1764594984201,3.32,127.33,127.29,3.1]
[1764594984699,3.32,127.33,127.27,3.1]
[1764594984887,3.32,127.3,127.24,10.1751]
[1764594985098,0.05884568,127.28,127.26,3.15520755]
[1764594987602,7.0661,127.41,127.34,3.11]
[1764594987796,3.3,127.42,127.35,7.17437273]
[1764594988105,3.3,127.42,127.3,110.0033]
[1764594988106,3.3,127.42,127.33,4.06437273]
[1764594988316,3.3,127.41,127.32,7.17437273]
[1764594988605,0.05946158,127.38,127.35,0.053349]
[1764594988797,3.3,127.37,127.35,0.053349]
[1764594989494,3.35946158,127.38,127.35,7.22772173]
[1764594989705,3.3,127.48,127.41,3.11]
[1764594989903,124.25689769,127.56,127.41,3.11]
[1764594989904,3.3,127.55,127.48,3.11]
[1764594990094,3.3,127.54,127.48,4.06437273]
[1764594990501,3.3,127.54,127.45,3.11]
[1764594990697,3.35223871,127.51,127.48,0.05411131]
[1764594993602,3.3,127.5,127.42,3.11]
[1764594994204,3.3,127.47,127.39,3.11]
[1764594994706,0.06023651,127.44,127.42,0.06047143]
[1764594994902,3.36023651,127.44,127.42,0.06047143]
[1764594997109,3.36023651,127.44,127.42,3.17047143]
[1764594997110,0.06023651,127.44,127.42,3.17047143]
[1764595005420,7.0614,127.49,127.42,3.17047143]
[1764595005621,10.3605,127.51,127.42,3.17047143]
[1764595005822,10.3605,127.51,127.42,3.11]
[1764595006019,7.0605,127.51,127.44,14.4177323]
[1764595006226,7.0605,127.51,127.45,3.11]
[1764595006424,7.0605,127.51,127.44,11.3077323]
[1764595006425,0.05258494,127.49,127.47,3.16445871]
[1764595013728,0.05258494,127.49,127.48,3.08]
[1764595014132,7.0577,127.56,127.48,3.08]
[1764595014526,10.2077,127.56,127.48,3.08]
[1764595014827,10.2077,127.56,127.48,10.1417]
[1764595015019,3.15,127.56,127.49,3.08]
[1764595015224,0.0598439,127.54,127.52,3.08]
[1764595015925,0.0598439,127.54,127.51,3.13313799]
[1764595018021,0.0598439,127.54,127.51,10.19323799]
[1764595018231,0.0598439,127.54,127.52,3.08]
[1764595021433,0.0598439,127.54,127.52,10.1393]
[1764595021731,0.0598439,127.54,127.53,3.08]
[1764595024429,0.0598439,127.54,127.52,3.08]
[1764595024633,0.0598439,127.54,127.51,0.05313799]
[1764595024833,3.2098439,127.54,127.51,0.05313799]
[1764595025929,3.15,127.52,127.51,0.05313799]
[1764595027326,1.6198439,127.54,127.53,3.08]
[1764595027327,0.0598439,127.54,127.53,3.08]
[1764595027637,0.0598439,127.54,127.51,3.13313799]
[1764595027831,3.2098439,127.54,127.51,0.05313799]
[1764595032833,10.2684439,127.54,127.51,0.05313799]
[1764595033040,113.0129439,127.54,127.51,0.05313799]
[1764595033229,3.15,127.53,127.51,0.05313799]
[1764595033839,10.209,127.53,127.51,0.05313799]
[1764595034041,3.15,127.52,127.51,0.05313799]
[1764595035636,10.2103,127.51,127.46,3.08]
[1764595036536,0.05035265,127.5,127.47,3.134645]
[1764595036842,3.20035265,127.5,127.47,3.134645]
[1764595037043,3.15,127.49,127.47,0.054645]
[1764595038733,3.11,127.48,127.41,3.12]
[1764595039539,10.1726,127.47,127.41,3.12]
[1764595039736,3.16221102,127.45,127.43,0.059391]
[1764595040446,0.05221102,127.45,127.43,3.159391]
[1764595042146,0.05221102,127.45,127.43,0.059391]
[1764595042548,3.17221102,127.45,127.43,0.059391]
[1764595043850,3.17221102,127.45,127.4,3.24]
[1764595044848,3.17221102,127.45,127.41,0.05624218]
[1764595045250,0.05221102,127.45,127.41,3.29624218]
[1764595046044,3.17221102,127.45,127.41,0.05624218]
[1764595046244,3.12,127.42,127.41,0.05624218]
[1764595046446,3.12,127.42,127.34,3.24]
[1764595047350,10.1854,127.42,127.34,3.24]
[1764595047551,3.17536164,127.39,127.37,0.05380155]
[1764595049751,3.17536164,127.39,127.32,27.16]
[1764595049949,3.17536164,127.39,127.32,30.4]
[1764595050149,3.12,127.37,127.33,3.24]
[1764595050745,0.0572312,127.36,127.34,0.05223329]
[1764595050950,3.1772312,127.36,127.34,0.05223329]
[1764595052662,3.12,127.34,127.27,3.24]
[1764595053052,3.12,127.36,127.28,3.24]
[1764595053555,0.05222187,127.33,127.31,0.05222631]
[1764595053861,0.05222187,127.33,127.31,3.29222631]
[1764595060061,0.05222187,127.33,127.31,10.36332631]
[1764595060260,0.05222187,127.33,127.32,3.24]
[1764595060461,3.12,127.38,127.33,3.24]
[1764595060663,3.12,127.41,127.36,3.24]
[1764595060965,3.12,127.41,127.35,2.60389865]
[1764595060966,3.12,127.4,127.35,2.60389865]
[1764595061161,10.1835,127.45,127.4,3.24]
[1764595061359,3.12,127.45,127.41,5.84389865]
[1764595061559,3.17502401,127.44,127.42,0.05251536]
[1764595065368,0.05502401,127.44,127.42,3.29251536]
[1764595065557,3.12,127.51,127.44,3.24]
[1764595066666,3.12,127.51,127.43,7.2265745]
[1764595066667,3.12,127.51,127.43,7.0642]
[1764595066872,3.12,127.48,127.46,0.05934644]
[1764595067063,3.12,127.48,127.46,0.05339716]
[1764595073980,0.05732535,127.49,127.46,3.37339716]
[1764595074178,0.05732535,127.49,127.47,3.32]
[1764595078983,3.35732535,127.49,127.46,3.10339716]
[1764595079181,0.05732535,127.49,127.46,3.10339716]
[1764595080078,3.35732535,127.49,127.46,0.05339716]
[1764595080472,0.05732535,127.49,127.46,3.10339716]
[1764595084081,3.35732535,127.49,127.46,3.10339716]
[1764595085873,0.05732535,127.49,127.46,3.10339716]
[1764595090194,0.05732535,127.49,127.46,10.16599716]
[1764595090485,0.05732535,127.49,127.47,3.18]
[1764595094883,0.05732535,127.49,127.47,10.2422]
[1764595095091,0.05732535,127.49,127.48,3.18]
[1764595095592,0.05732535,127.49,127.47,3.18]
[1764595099205,3.35732535,127.49,127.47,3.18]
[1764595100592,0.05732535,127.49,127.47,3.18]
[1764595101883,3.20732535,127.49,127.46,0.05339716]
[1764595102086,3.20732535,127.49,127.46,3.26339716]
[1764595106999,0.05732535,127.49,127.46,3.26339716]
[1764595107401,3.20732535,127.49,127.46,3.26339716]
[1764595107600,10.26862535,127.49,127.46,0.05339716]
[1764595107795,3.12,127.48,127.46,0.05339716]
[1764595110100,10.1819,127.48,127.46,0.05339716]
[1764595110405,3.12,127.47,127.46,0.05339716]
[1764595111604,10.1823,127.47,127.46,0.05339716]
[1764595112104,3.12,127.47,127.46,0.05339716]
[1764595112800,10.1823,127.47,127.46,0.05339716]
[1764595116507,3.12,127.44,127.37,12.63821737]
[1764595116703,3.12,127.44,127.37,3.06]
[1764595117405,3.12,127.41,127.39,0.05101068]
[1764595117810,3.12,127.41,127.34,3.06]
[1764595118007,3.12,127.37,127.34,3.06]
[1764595118311,10.1874,127.38,127.34,3.06]
[1764595118608,3.12,127.41,127.34,3.06]
[1764595118999,0.05164613,127.39,127.37,3.06]
[1764595119506,3.17164613,127.39,127.36,0.05452707]
[1764595120097,10.23864613,127.39,127.36,0.05452707]
[1764595120304,3.12,127.38,127.36,0.05452707]
[1764595121708,10.23864613,127.39,127.36,3.11452707]
[1764595123106,3.12,127.38,127.36,0.05452707]
[1764595127004,3.12,127.37,127.36,0.05452707]
[1764595127805,10.1876,127.38,127.36,0.05452707]
[1764595128011,3.12,127.37,127.36,0.05452707]
[1764595129010,3.12,127.35,127.29,3.06]
[1764595129316,3.12,127.35,127.3,3.06]
[1764595129518,109.9401,127.38,127.27,4.06064926]
[1764595129519,3.12,127.38,127.32,3.06]
[1764595130021,3.29919681,127.36,127.34,0.03053197]
[1764595131114,3.29919681,127.36,127.34,3.17053197]
[1764595132020,3.29919681,127.36,127.34,0.03053197]
[1764595132413,0.05919681,127.36,127.34,3.17053197]
[1764595132719,3.29919681,127.36,127.34,0.03053197]
[1764595135616,0.05919681,127.36,127.34,3.17053197]
[1764595136619,3.29919681,127.36,127.34,0.03053197]
[1764595138020,3.24,127.34,127.28,3.14]
[1764595138619,10.3102,127.33,127.28,3.14]
[1764595139017,3.29249205,127.32,127.28,3.14]
[1764595139919,3.24,127.31,127.28,3.14]
[1764595140626,10.36319205,127.32,127.28,3.14]
[1764595141627,3.24,127.31,127.28,3.14]
[1764595143421,3.24,127.3,127.27,2.6060814]
[1764595143821,3.24,127.3,127.27,5.7460814]
[1764595144021,3.24,127.3,127.27,3.14]
[1764595144222,3.24,127.29,127.25,32.9060814]
[1764595144423,3.2977259,127.28,127.25,32.9060814]
[1764595145227,3.2977259,127.28,127.25,27.16]
[1764595145530,3.2977259,127.28,127.23,5.7460814]
[1764595146231,3.2977259,127.28,127.23,2.6060814]
[1764595146433,3.24,127.27,127.23,3.14]
[1764595148327,3.24,127.27,127.21,2.6060814]
[1764595148526,0.05611917,127.25,127.22,3.14]
[1764595148828,3.29611917,127.25,127.22,3.14]
[1764595150524,3.29611917,127.25,127.21,5.7460814]
[1764595150730,3.29611917,127.25,127.21,2.6060814]
[1764595151028,0.05611917,127.25,127.22,3.14]
[1764595151222,0.05611917,127.25,127.23,5.7460814]
[1764595154732,3.29611917,127.25,127.22,5.7460814]
[1764595155330,3.29611917,127.25,127.2,3.14]
[1764595155532,3.29611917,127.25,127.21,3.14]
[1764595158242,3.29611917,127.25,127.2,5.7460814]
[1764595158543,3.24,127.24,127.2,5.7460814]
[1764595159040,3.24,127.24,127.21,3.14]
[1764595161237,3.24611917,127.25,127.21,3.14]
[1764595161437,0.05611917,127.25,127.23,3.24]
[1764595161639,0.05611917,127.25,127.17,50.70677518]
[1764595161640,0.0517848,127.25,127.24,2.6060814]
[1764595161835,0.05150973,127.26,127.24,2.6060814]
[1764595162143,0.05150973,127.26,127.25,3.24]
[1764595162544,3.19,127.32,127.26,3.24]
[1764595162746,3.19,127.32,127.28,3.24]
[1764595163744,0.05593381,127.31,127.29,0.05150973]
[1764595163946,0.05593381,127.31,127.29,5.89759113]
[1764595165547,0.05593381,127.31,127.29,3.29150973]
[1764595167742,3.31593381,127.31,127.29,0.05150973]
[1764595168142,0.05593381,127.31,127.3,3.07]
[1764595170341,0.05593381,127.31,127.29,5.72759113]
[1764595172240,3.31593381,127.31,127.29,5.72759113]
[1764595172446,3.31593381,127.31,127.29,0.05150973]
[1764595177448,3.26,127.28,127.24,5.6760814]
[1764595177649,3.26,127.28,127.25,3.07]
[1764595177849,3.26,127.28,127.24,5.6760814]
[1764595178048,3.26,127.28,127.25,3.07]
[1764595178547,3.31534692,127.28,127.25,3.07]
[1764595178742,3.31534692,127.28,127.24,5.6760814]
[1764595180653,3.26,127.27,127.23,2.6060814]
[1764595180850,3.31763781,127.26,127.23,5.6760814]
[1764595182055,3.31763781,127.26,127.22,3.07]
[1764595182255,3.31763781,127.26,127.21,2.6060814]
[1764595182645,3.31763781,127.26,127.19,3.07]
[1764595182646,3.31763781,127.26,127.2,2.6060814]
[1764595182843,3.26,127.23,127.2,5.6760814]
[1764595184651,3.26,127.23,127.21,3.07]
[1764595184853,3.31556962,127.24,127.21,3.07]
[1764595185360,0.05556962,127.24,127.21,3.07]
[1764595185562,3.31556962,127.24,127.21,3.07]
[1764595185750,0.05556962,127.24,127.22,5.6760814]
[1764595186058,0.05556962,127.24,127.23,3.07]
[1764595188261,0.05556962,127.24,127.23,5.6760814]
[1764595189253,0.05556962,127.24,127.23,3.07]
[1764595189454,0.05556962,127.24,127.23,5.6760814]
[1764595193866,0.05556962,127.24,127.2,3.04]
[1764595193867,3.16556962,127.24,127.2,3.04]
[1764595195460,10.24066962,127.24,127.2,3.04]
[1764595195762,3.11,127.23,127.2,3.04]
[1764595200261,3.16556962,127.24,127.21,2.6060814]
[1764595200462,3.16556962,127.24,127.21,5.6460814]
[1764595201565,0.05556962,127.24,127.22,3.04]
[1764595201766,3.16556962,127.24,127.22,3.04]
[1764595202362,0.05556962,127.24,127.23,3.04]
[1764595202566,3.16556962,127.24,127.21,3.04]
[1764595202871,3.16911006,127.24,127.19,3.04]
[1764595208866,3.11,127.23,127.19,3.04]
[1764595212162,0.05911006,127.24,127.19,3.04]
[1764595212370,0.05911006,127.24,127.23,3.04]
[1764595214368,0.05911006,127.24,127.22,7.11571675]
[1764595214573,0.05911006,127.24,127.22,3.04]
[1764595217680,3.16911006,127.24,127.22,3.04]
[1764595219880,0.05911006,127.24,127.22,3.04]
[1764595220876,3.18911006,127.24,127.22,3.04]
[1764595222182,0.05911006,127.24,127.22,3.04]
[1764595224286,3.18911006,127.24,127.22,3.04]
[1764595228581,0.05911006,127.24,127.22,3.04]
[1764595229087,3.38911006,127.24,127.22,3.04]
[1764595229584,0.05911006,127.24,127.22,3.04]
[1764595232294,3.38911006,127.24,127.22,3.04]
[1764595233294,0.05911006,127.24,127.22,7.11571675]
[1764595233597,0.05911006,127.24,127.23,3.12]
[1764595234597,0.05911006,127.24,127.21,3.12]
[1764595235593,3.38911006,127.24,127.21,3.12]
[1764595238801,7.0757,127.23,127.2,3.12]
[1764595239003,7.0757,127.23,127.18,13.65393412]
[1764595239004,3.33,127.22,127.18,7.19571675]
[1764595239197,3.38104562,127.21,127.18,7.19571675]
[1764595239500,3.38104562,127.21,127.19,3.12]
[1764595239705,0.05104562,127.21,127.19,3.12]
[1764595240205,3.38104562,127.21,127.19,3.12]
[1764595241210,0.05104562,127.21,127.19,3.12]
[1764595241708,0.05104562,127.21,127.2,7.19571675]
[1764595242507,0.05104562,127.21,127.2,3.12]
[1764595242709,0.05104562,127.21,127.18,3.12]
[1764595242710,3.38104562,127.21,127.18,3.12]
[1764595245902,3.38104562,127.21,127.16,11.15501675]
[1764595245903,3.38104562,127.21,127.16,9.57821737]
[1764595246107,3.38104562,127.21,127.16,12.69821737]
[1764595246505,3.38104562,127.21,127.16,3.12]
[1764595246914,3.38104562,127.21,127.17,3.12]
[1764595248720,3.38104562,127.21,127.16,9.57821737]
[1764595249025,3.38104562,127.21,127.18,7.19571675]
[1764595250221,3.38104562,127.21,127.19,3.1]
[1764595250721,0.05104562,127.21,127.19,3.1]
[1764595253733,3.17104562,127.21,127.19,3.1]
[1764595254124,0.05104562,127.21,127.19,3.1]
[1764595255423,3.12,127.27,127.22,3.1]
[1764595255623,16.83763215,127.31,127.21,7.0767]
[1764595255624,7.34939005,127.32,127.26,3.1]
[1764595255921,14.41969005,127.33,127.28,7.17571675]
[1764595256121,7.34939005,127.34,127.28,7.17571675]
[1764595256321,7.34939005,127.35,127.28,7.17571675]
[1764595256528,7.0708,127.32,127.3,0.05104562]
[1764595257624,3.12,127.31,127.3,0.05104562]
[1764595260628,0.05029265,127.33,127.31,3.1]
[1764595261225,3.17029265,127.33,127.3,4.12676237]
[1764595261433,3.17029265,127.33,127.3,3.15104562]
[1764595261634,3.17029265,127.33,127.3,0.05104562]
[1764595264224,0.05029265,127.33,127.3,3.15104562]
[1764595264415,0.05029265,127.33,127.3,5.7559393]
[1764595264623,0.05029265,127.33,127.31,3.1]
[1764595265624,3.17029265,127.33,127.3,5.7559393]
[1764595266030,3.17029265,127.33,127.3,3.15104562]
[1764595266218,3.12,127.32,127.3,0.05104562]
[1764595268729,10.1907,127.32,127.3,0.05104562]
[1764595268930,3.12,127.31,127.3,0.05104562]
[1764595270728,3.12,127.3,127.26,2.60489368]
[1764595271027,3.12,127.28,127.24,3.1]
[1764595271333,3.12,127.27,127.23,3.1]
[1764595271531,3.12,127.27,127.22,2.60489368]
[1764595271730,3.12,127.24,127.2,3.1]
[1764595272031,3.12,127.24,127.17,9.57821737]
[1764595272032,3.12,127.22,127.19,3.1]
[1764595273020,0.05882429,127.23,127.19,5.70489368]
[1764595273219,0.05882429,127.23,127.2,3.1]
[1764595274427,7.13452429,127.23,127.2,3.1]
[1764595274626,3.17882429,127.23,127.17,5.70489368]
[1764595274829,0.05114001,127.21,127.18,3.1]
[1764595275828,7.12804001,127.21,127.18,3.1]
[1764595276530,10.24804001,127.21,127.18,3.1]
[1764595277238,10.1974,127.2,127.17,5.70489368]
[1764595277435,3.12,127.2,127.14,5.70489368]
[1764595277627,3.17350353,127.18,127.15,3.1]
[1764595277827,3.12,127.17,127.14,3.1]
[1764595278029,3.17378555,127.17,127.14,3.1]
[1764595278638,7.13288555,127.17,127.13,3.1]
[1764595278842,3.17962277,127.16,127.12,3.1]
[1764595279432,10.25932277,127.16,127.12,3.1]
[1764595279742,3.12,127.15,127.12,3.1]
[1764595280132,0.05962277,127.16,127.12,3.1]
[1764595280535,0.05962277,127.16,127.13,3.17]
[1764595282542,3.40962277,127.16,127.13,3.17]
[1764595285041,3.40962277,127.16,127.12,3.17]
[1764595285434,0.05962277,127.16,127.12,3.17]
[1764595285834,0.05962277,127.16,127.14,3.17]
[1764595287248,3.40962277,127.16,127.13,3.17]
[1764595287542,3.35,127.14,127.11,3.17]
[1764595287734,3.35,127.14,127.09,3.17]
[1764595287933,3.40999385,127.13,127.09,3.17]
[1764595288339,0.05999385,127.13,127.09,3.17]
[1764595288538,3.40999385,127.13,127.09,3.17]
[1764595289246,3.22,127.19,127.13,3.22]
[1764595289449,3.22,127.19,127.15,3.22]
[1764595290055,12.90189368,127.21,127.15,3.22]
[1764595290347,0.05748059,127.19,127.17,3.27492542]
[1764595291041,3.27748059,127.19,127.17,0.05492542]
[1764595291249,3.22,127.18,127.13,3.22]
[1764595291644,3.22,127.16,127.13,3.22]
[1764595292142,3.27825994,127.16,127.13,3.22]
[1764595292349,0.05825994,127.16,127.13,3.22]
[1764595294547,3.27825994,127.16,127.13,3.22]
[1764595294747,3.27825994,127.16,127.1,3.22]
[1764595295452,10.3002,127.15,127.1,3.22]
[1764595296651,3.22,127.14,127.1,3.22]
[1764595296846,0.05204011,127.13,127.1,3.22]
[1764595303362,3.22,127.2,127.11,3.22]
[1764595303562,3.22,127.22,127.14,3.22]
[1764595304167,3.22,127.2,127.14,3.22]
[1764595304458,3.22,127.17,127.16,0.04957042]
[1764595305661,10.299,127.17,127.16,0.04957042]
[1764595307961,10.299,127.17,127.11,10.3022]
[1764595308956,0.0553479,127.15,127.12,3.22]
[1764595309151,3.2753479,127.15,127.12,3.22]
[1764595310574,10.3554479,127.15,127.12,3.22]
[1764595311368,3.08,127.14,127.09,3.11]
[1764595311575,0.04949596,127.13,127.09,3.11]
[1764595313778,10.1618,127.12,127.09,3.11]
[1764595314084,0.04949596,127.13,127.07,3.11]
[1764595314281,3.1393394,127.11,127.07,3.11]
[1764595314878,0.0593394,127.11,127.07,3.11]
[1764595316687,3.08,127.1,127.07,3.11]
[1764595317187,3.1393394,127.11,127.07,3.11]
[1764595317582,0.0593394,127.11,127.07,3.11]
[1764595317887,0.0593394,127.11,127.09,3.11]
[1764595322387,0.0593394,127.11,127.1,5.72501609]
[1764595324093,7.0806,127.15,127.1,5.72501609]
[1764595324284,10.1606,127.15,127.11,3.11]
[1764595324989,10.1606,127.15,127.12,0.05350914]
[1764595324990,0.05378447,127.14,127.12,0.05350914]
[1764595325384,3.13378447,127.14,127.12,0.05350914]
[1764595325590,3.08,127.13,127.12,0.05350914]
[1764595326182,10.1612,127.13,127.12,0.05350914]
[1764595327292,0.05378447,127.14,127.12,3.16350914]
[1764595332894,7.0778,127.2,127.13,3.11]
[1764595333596,3.08,127.18,127.12,9.57821737]
[1764595333796,3.08,127.18,127.11,3.11]
[1764595333996,3.13217836,127.16,127.13,0.05620039]
[1764595334198,10.21187836,127.16,127.13,0.05620039]
[1764595334392,3.08,127.15,127.13,0.05620039]
[1764595334996,10.1602,127.15,127.13,0.05620039]
[1764595337096,3.08,127.14,127.13,0.05620039]
[1764595337495,3.13217836,127.16,127.13,3.16620039]
[1764595337699,0.05217836,127.16,127.13,3.16620039]
[1764595339793,3.13217836,127.16,127.13,0.05620039]
[1764595340707,10.21187836,127.16,127.13,0.05620039]
[1764595341098,10.21187836,127.16,127.13,3.25620039]
[1764595341502,3.24,127.15,127.13,0.05620039]
[1764595342509,10.3201,127.15,127.13,0.05620039]
[1764595342806,3.24,127.14,127.13,0.05620039]
[1764595344610,3.24,127.13,127.09,3.2]
[1764595345212,3.24,127.11,127.07,9.57821737]
[1764595345511,3.24,127.13,127.07,3.2]
[1764595345715,0.05402292,127.11,127.09,3.25581183]
[1764595346418,7.13662292,127.11,127.09,3.25581183]
[1764595347018,0.05402292,127.11,127.09,3.25581183]
[1764595356423,0.05402292,127.11,127.1,3.16]
[1764595361531,7.0806,127.15,127.11,3.16]
[1764595361733,7.0795,127.17,127.11,3.16]
[1764595362325,3.17,127.16,127.11,3.16]
[1764595362535,0.05400895,127.15,127.13,3.21562273]
[1764595365236,3.22400895,127.15,127.13,3.21562273]
[1764595365735,3.22400895,127.15,127.13,0.05562273]
[1764595366335,3.22400895,127.15,127.13,3.21562273]
[1764595366639,0.05400895,127.15,127.13,3.21562273]
[1764595367639,7.0782,127.19,127.13,3.21562273]
[1764595367833,10.2472,127.21,127.14,3.16]
[1764595368039,3.17,127.2,127.14,3.16]
[1764595368730,0.05579604,127.18,127.16,0.04997204]
[1764595369035,0.05579604,127.18,127.16,3.20997204]
[1764595369238,3.22579604,127.18,127.16,0.04997204]
[1764595371035,3.06,127.17,127.16,0.04997204]
[1764595372635,3.06,127.16,127.1,3.05]
[1764595373734,0.05861723,127.14,127.12,3.10411432]
[1764595375141,3.11861723,127.14,127.12,0.05411432]
[1764595379744,3.11861723,127.14,127.12,3.10411432]
[1764595379937,0.05861723,127.14,127.12,3.10411432]
[1764595380939,3.11861723,127.14,127.12,0.05411432]
[1764595381140,3.06,127.13,127.12,0.05411432]
[1764595381539,3.06,127.13,127.09,3.05]
[1764595381745,3.06,127.11,127.09,3.05]
[1764595381938,3.06,127.11,127.05,47.8455224]
[1764595382239,3.06,127.1,127.07,3.05]
[1764595382446,3.06,127.1,127.05,12.62821737]
[1764595382642,3.11057214,127.09,127.06,3.10635742]
[1764595383441,3.06,127.08,127.06,0.05635742]
[1764595383648,3.06,127.08,127.02,3.05]
[1764595384347,3.06,127.08,127.01,47.8479224]
[1764595384643,3.06,127.05,127.02,3.05]
[1764595385542,0.05609081,127.06,127.02,3.05]
[1764595386448,3.06,127.05,127.02,5.66647214]
[1764595386744,3.06,127.05,127.01,30.15]
[1764595386947,3.06,127.05,127.02,3.05]
[1764595387741,0.05609081,127.06,127.04,3.05]
[1764595388550,0.05609081,127.06,127.04,5.66647214]
[1764595388947,0.05609081,127.06,127.05,3.05]
[1764595389350,3.11609081,127.06,127.04,2.61647214]
[1764595389649,3.11609081,127.06,127.02,5.66647214]
[1764595390150,10.1457,127.05,127.02,3.05]
[1764595390950,3.06,127.05,127.02,3.05]
[1764595393648,3.11609081,127.06,127.02,3.05]
[1764595395451,10.20119081,127.06,127.02,3.05]
[1764595396047,7.0857,127.05,127.02,3.05]
[1764595396450,10.1457,127.05,127.02,3.05]
[1764595396852,3.06,127.04,127.02,3.05]
[1764595397241,10.1457,127.05,127.02,3.05]
[1764595397747,3.06,127.04,126.97,16.66791737]
[1764595397955,0.0567105,127.02,127.01,5.66647214]
[1764595398253,0.05661444,127.03,127.02,3.05]
[1764595398446,0.05350872,127.04,127.02,3.05]
[1764595399343,0.05350872,127.04,127.03,5.66647214]
[1764595399749,3.06,127.1,127.04,3.05]
[1764595399948,3.06,127.1,127.07,3.08]
[1764595400147,3.06,127.1,127.06,5.69647214]
[1764595400849,0.05274028,127.09,127.07,0.05173637]
[1764595401355,0.05274028,127.09,127.07,3.13173637]
[1764595407552,3.38,127.16,127.09,3.14]
[1764595407752,3.38,127.16,127.12,3.14]
[1764595408554,2.61647214,127.17,127.12,3.14]
[1764595408555,3.38,127.14,127.13,0.05615283]
[1764595410554,0.05615283,127.15,127.13,3.19615283]
[1764595410756,0.05615283,127.15,127.13,0.05615283]
[1764595410757,3.43615283,127.15,127.13,0.05615283]
[1764595411061,0.05615283,127.15,127.13,5.81262497]
[1764595411265,0.05615283,127.15,127.14,3.14]
[1764595412463,0.05615283,127.15,127.14,5.75647214]
[1764595413256,0.05615283,127.15,127.14,3.14]
[1764595413460,0.05615283,127.15,127.14,5.75647214]
[1764595414562,0.05615283,127.15,127.13,0.05615283]
[1764595414563,3.43615283,127.15,127.13,0.05615283]
[1764595414956,3.43615283,127.15,127.13,3.19615283]
[1764595415162,0.05615283,127.15,127.13,3.19615283]
[1764595415465,0.05615283,127.15,127.14,5.75647214]
[1764595420975,0.05615283,127.15,127.14,12.83717214]
[1764595423079,0.05615283,127.15,127.14,10.2207]
[1764595423280,0.05615283,127.15,127.14,12.83717214]
[1764595424276,0.05615283,127.15,127.14,2.61647214]
[1764595424483,0.05615283,127.15,127.13,3.19615283]
[1764595427175,3.43615283,127.15,127.13,0.05615283]
[1764595432386,3.43615283,127.15,127.13,3.32615283]
[1764595432775,0.05615283,127.15,127.14,5.88647214]
[1764595432983,30.91195068,127.24,127.15,3.27]
[1764595432984,10.1969,127.21,127.15,3.27]
[1764595433178,10.1969,127.21,127.17,5.88647214]
[1764595433386,3.12,127.2,127.17,5.88647214]
[1764595434088,3.12,127.2,127.17,5.94224107]
[1764595434089,3.17351354,127.2,127.17,5.94224107]
[1764595440290,0.05351354,127.2,127.19,2.61647214]
[1764595440487,0.05351354,127.2,127.19,5.88647214]
[1764595441397,3.17351354,127.2,127.17,2.67224107]